Cogmind - Beta 13 @@@ ROGUE MODE // 2024.04.09 @ 19:24:16 Player: TheLargestBoi Result: Destroyed by Y-54 Guardian with Flak Gun Performance ------------- Evolutions (3) 1500 Regions Visited (6) 1200 Robots Destroyed (98) 490 Value Destroyed (2802) 2802 Prototype IDs (4) 80 Alien Tech Used (0) 0 Bonus (-226) -226 TOTAL SCORE: 5846 Bonus ------- Follower Combat Kills 115 Friendly Fire -341 Cogmind --------- Core Integrity 0/700 Matter 280/300 Energy 222/225 System Corruption 21% Temperature Cool (9) Movement Walking (140) Location -7/Factory Parts ------- > --- POWER (1) -------- Deuterium-Nuclear Engine > --- PROPULSION (4) --- Carbon Exoskeleton > --- UTILITY (4) ------ Armored Scrap Engine Medium Storage Unit Improved Melee Analysis Suite > --- WEAPON (4) ------- Thermic Pulse Construct/G Burst Accelerated Construct/G Axe Chainsword > --- INVENTORY (10) --- Improved Heat Sink Improved Melee Analysis Suite Improved Melee Analysis Suite Weapon Cycler Microactuators Scrap Shield Hacking Suite Component Analysis Suite Improved Field Recycling Unit (0) Peak State ------------ > --- POWER ------------ Deuterium-Nuclear Engine > --- PROPULSION ------- Carbon Exoskeleton > --- UTILITY ---------- Armored Scrap Engine Medium Storage Unit Reaction Control System > --- WEAPON ----------- Burst Accelerated Construct/G Chainsword Chainsword > --- INVENTORY -------- Improved Heat Sink Advanced Weight Redist. System Improved Terrain Scanner Weapon Cycler Scrap Shield Hacking Suite Component Analysis Suite Improved Field Recycling Unit Chainsword [Rating: 61] Favorites ----------- Power Constructs Engine Constructs Propulsion Constructs Leg Constructs Wheel Subdweller Monowheel Hover Unit Backup Propulsion I Utility Medium Storage Unit Device Armored Scrap Engine Storage Medium Storage Unit Processor Improved Melee Analysis Suite Protection Hardened Light Armor Plating Weapon Chainsword Energy Gun Particle Gun Ballistic Gun Constructs Ballistic Cannon Heavy Gauss Cannon Launcher Grenade Launcher Impact Weapon Maul Slashing Weapon Chainsword Build | -11 -10 -10 -9 -7 -7 -7 ------- Run | Yrd Mat Sub Rec Fac Was Fac Slots Evolved 6 | . . . . 6 . . Power . | . . . . . . . Propulsion 2 | . . . . 2 . . Utility 2 | . . . . 2 . . Weapon 2 | . . . . 2 . . Parts Attached 66 | 8 17 19 4 6 1 11 Power 4 | 1 2 1 . . . . Engine 4 | 1 2 1 . . . . Core . | . . . . . . . Reactor . | . . . . . . . Propulsion 13 | 2 5 6 . . . . Treads . | . . . . . . . Leg 5 | 2 2 1 . . . . Wheel 8 | . 3 5 . . . . Hover . | . . . . . . . Flight . | . . . . . . . Utility 18 | 2 5 5 1 2 . 3 Device 9 | 1 2 2 1 1 . 2 Storage 4 | 1 2 . . 1 . . Processor 3 | . . 2 . . . 1 Hackware . | . . . . . . . Protection 2 | . 1 1 . . . . Artifact . | . . . . . . . Weapon 31 | 3 5 7 3 4 1 8 Energy Gun 3 | 1 2 . . . . . Energy Cannon . | . . . . . . . Ballistic Gun 4 | 2 . 2 . . . . Ballistic Cannon 8 | . 2 4 . 2 . . Launcher 3 | . 1 1 . . 1 . Special Weapon . | . . . . . . . Impact Weapon 3 | . . . 3 . . . Slashing Weapon 10 | . . . . 2 . 8 Piercing Weapon . | . . . . . . . Special Melee Weapon . | . . . . . . . Unidentified Prototypes . | . . . . . . . Parts Lost 25 | . 4 5 2 1 3 10 Power 4 | . 1 . . 1 . 2 Propulsion 11 | . 1 3 1 . 2 4 Utility 2 | . . . . . 1 1 Weapon 8 | . 2 2 1 . . 3 Highest Loss Streak 8 | . 4 2 2 1 3 8 To Critical Strikes . | . . . . . . . Average Slot Usage (%) 74 | . 95 95 62 55 54 58 Engine 10 | . 13 14 13 6 7 5 Leg 4 | . 12 . . . 4 2 Wheel 9 | . 11 23 17 6 . . Hover 1 | . 1 . . . 2 3 Device 10 | . 11 6 13 12 11 10 Storage 9 | . 14 14 . 7 7 7 Processor 2 | . . 6 . . . 3 Energy Gun 5 | . 18 . . . . 1 Energy Cannon 1 | . . . . 6 . 2 Ballistic Gun 2 | . . 9 3 . 1 1 Ballistic Cannon 6 | . 6 16 1 11 7 1 Impact Weapon 1 | . . . 11 1 . . Slashing Weapon 4 | . . . . . 7 14 Naked Turns . | . . . . . . . Heaviest Build 50 | 14 24 31 27 50 50 38 Greatest Support 65 | 20 20 40 40 32 30 65 Greatest Overweight (x) 10 | . 7 7 . 1 7 10 Average Overweight (x) . | . . . . . 1 . Largest Inventory Capacity 10 | 8 10 10 10 10 10 10 Average Capacity 8 | 7 8 10 5 10 10 10 Most Carried 10 | 7 9 10 10 10 10 10 Average Carried 8 | 3 8 9 5 4 10 9 Final Capacity 10 | 8 10 10 5 10 10 10 Final Carried 10 | 6 9 9 5 10 10 10 Scrap Engine Consumption 133 | . . . 26 21 2 84 Constructs Created 11 | . . . 3 1 2 5 Constructs Modified 33 | . . . 3 3 2 25 Class Distribution -------------------- 41% | Construct 38% | Mutant 12% | Scavenger-Mutant 6% | Commander-Construct Dominant Class ---------------- Mutant | -10/Materials Scavenger-Mutant | -10/Subcaves Construct | -9/Recycling Commander-Construct | -7/Factory Mutant | -7/Waste Construct | -7/Factory Resources | -11 -10 -10 -9 -7 -7 -7 ----------- Run | Yrd Mat Sub Rec Fac Was Fac Matter Collected 2109 | 260 334 497 174 167 . 677 Remotely . | . . . . . . . Salvage Created 4559 | 60 476 428 1045 174 739 1637 Parts 186 | 7 26 39 19 8 4 83 Haulers Intercepted 2 | . 1 . . . . 1 Recyclers Shooed 5 | 1 . . 2 . . 2 Parts Field Recycled . | . . . . . . . Retrieved Matter . | . . . . . . . Parts Self-Destructed 16 | . . 16 . . . . Prevented . | . . . . . . . Kills | -11 -10 -10 -9 -7 -7 -7 ------- Run | Yrd Mat Sub Rec Fac Was Fac Combat Hostiles Destroyed 60 | . 7 17 5 4 3 24 Melee 15 | . . . 2 . . 13 Guns 15 | . 4 2 . . . 9 Cannons 11 | . . 6 . 2 1 2 AOE 16 | . 3 9 . 2 2 . Classes Destroyed 15 | 1 7 2 2 2 1 . Worker 8 | . 2 . . . . 6 Tunneler 4 | 3 1 . . . . . Hauler 2 | . 1 . . . . 1 Recycler 18 | . 2 . 11 1 . 4 Operator 2 | . 1 . . . . 1 Watcher 3 | . 2 . . . . 1 Swarmer 12 | . 3 3 . . . 6 Grunt 11 | . 4 1 . 2 . 4 Duelist 4 | . . . . 1 . 3 Protector 1 | . . . 1 . . . Sentry 10 | . . 1 3 . . 6 Hunter 3 | . . . 1 . . 2 Programmer 5 | . . . . 2 . 3 Compactor 3 | . . . . . 3 . Subdweller 12 | . . 12 . . . . Best Kill Streak 12 | 3 4 7 12 3 3 12 Combat Bots Only 7 | . 3 7 2 2 3 4 Max Kills in Single Turn 4 | 1 4 4 1 2 2 1 Gunslinging . | . . . . . . . Exploded 4 | . 3 4 . 2 2 . Melee 1 | . . . 1 . . 1 Uniques/NPCs Destroyed . | . . . . . . . Combat | -11 -10 -10 -9 -7 -7 -7 -------- Run | Yrd Mat Sub Rec Fac Was Fac Hostile Shots Fired 430 | . 25 68 20 40 5 272 Missed 159 | . 2 28 4 17 1 107 Damage Taken 4323 | . 387 759 245 286 193 2453 Core 900 | . 34 130 35 6 93 602 Absorbed by Shields . | . . . . . . . Regen/Repaired (Parts) 839 | . . . 80 75 6 678 Core Remaining (%) 60 | 100 . . 20 . . . Volleys Fired 166 | 8 37 36 2 18 8 57 Largest 3 | 2 2 2 2 3 3 1 Hottest 208 | 40 130 96 96 208 152 92 Shots Fired 278 | 16 73 70 4 39 19 57 Gun 122 | 16 58 19 . . . 29 Cannon 147 | . 14 46 4 39 16 28 Launcher 9 | . 1 5 . . 3 . Special . | . . . . . . . Kinetic 185 | 16 14 65 4 32 16 38 Thermal 84 | . 58 . . 7 . 19 Explosive 9 | . 1 5 . . 3 . Electromagnetic . | . . . . . . . Robot Hit Streak 14 | 6 14 11 . 4 10 9 Robot Miss Streak 6 | 2 3 2 4 4 1 6 Penetration Max . | . . . . . . . Secondary Targets . | . . . . . . . Shots Hit Robots 260 | 10 44 42 25 22 17 100 Core Hits 124 | 5 20 28 5 6 9 51 Critical Kills 6 | . . 4 2 . . . Critical Parts Destroyed 8 | . . 4 4 . . . Critical Strikes 33 | . 4 13 6 2 1 7 Burn 3 | . 3 . . . . . Destroy 11 | . . 11 . . . . Blast 6 | . 1 2 . 2 1 . Smash 6 | . . . 6 . . . Sever 7 | . . . . . . 7 Melee Attacks 110 | . . . 25 . 1 84 Impact 25 | . . . 25 . . . Slashing 85 | . . . . . 1 84 Piercing . | . . . . . . . Sneak Attacks 24 | . . . 13 . . 11 Combat Hostiles 2 | . . . 2 . . . Follow-up Attacks 6 | . . . 1 . . 5 Damage Inflicted 10474 | 107 857 1682 1498 1534 1119 3677 Guns 1366 | 107 597 159 . . . 503 Cannons 2816 | . 110 671 . 910 543 582 Explosions 2184 | . 150 852 . 624 558 . Melee 4100 | . . . 1493 . 18 2589 Ramming 8 | . . . 5 . . 3 Kinetic 3139 | 107 110 830 . 796 543 753 Thermal 1667 | . 597 . . 738 . 332 Explosive 1560 | . 150 852 . . 558 . Electromagnetic . | . . . . . . . Impact 1493 | . . . 1493 . . . Slashing 2607 | . . . . . 18 2589 Piercing . | . . . . . . . Highest Corruption 21 | . 4 4 4 . 16 21 Average Corruption 9 | . 3 4 4 . 11 19 Corruption Purged . | . . . . . . . Corruption Blocked . | . . . . . . . Effects 140 | . 16 21 18 . 6 79 Message Errors 29 | . 7 5 2 . 1 14 Matter Fused 40 | . 3 3 9 . . 25 Heat Flow Errors 22 | . 2 5 3 . 3 9 Energy Discharges 13 | . 2 3 1 . . 7 Parts Rejected 3 | . . . . . 1 2 Parts Fused 1 | . . . 1 . . . Data Loss (minor) 16 | . . 3 1 . . 12 Data Loss (major) 11 | . 1 2 1 . . 7 Misfires 1 | . 1 . . . . . Alerts 2 | . . . . . 1 1 Misdirections 2 | . . . . . . 2 Overload Shots . | . . . . . . . Overflow Damage 1024 | . . . 548 102 . 374 Projectiles 175 | . . . . 57 . 118 Explosions 45 | . . . . 45 . . Melee 804 | . . . 548 . . 256 Knockbacks 18 | . 1 5 3 7 . 2 Impact 3 | . . . 3 . . . Kinetic 15 | . 1 5 . 7 . 2 Secondary . | . . . . . . . Self-Inflicted Damage 42 | . . 40 1 . . 1 Shots 1 | . . 1 . . . . Rammed 5 | . . . 4 . . 1 Targets Rammed 5 | . . . 4 . . 1 Kicked . | . . . . . . . Crushed . | . . . . . . . Highest Temperature 665 | . 665 246 265 390 374 240 Average Temperature 136 | . 188 60 103 133 150 84 Received Heat Transfer 786 | . 153 207 63 39 . 324 Effects 28 | . 22 . . 6 . . Shutdowns 7 | . 6 . . 1 . . Energy Bleed 3 | . 3 . . . . . Interference 9 | . 4 . . 5 . . Matter Decay 1 | . 1 . . . . . Short Circuit 2 | . 2 . . . . . Damage (minor) 4 | . 4 . . . . . Damage (major) 2 | . 2 . . . . . Siege Activations . | . . . . . . . Robots Corrupted . | . . . . . . . Combat Hostiles . | . . . . . . . Parts Fried 12 | . . . 12 . . . Impact Corruptions 18 | . . . 18 . . . Robots Melted . | . . . . . . . Combat Hostiles . | . . . . . . . Parts Melted 5 | . 4 1 . . . . Heat Transferred 2522 | . 1628 . . 548 . 346 Parts Sabotaged . | . . . . . . . Parts Stolen . | . . . . . . . Parts Stripped . | . . . . . . . Power Chain Reactions . | . . . . . . . Alert | -11 -10 -10 -9 -7 -7 -7 ------- Run | Yrd Mat Sub Rec Fac Was Fac Peak Influence 429 | 15 168 . 109 175 76 429 Initial 61 | . 9 . 21 21 61 4 Average 78 | 4 52 . 29 62 37 136 Maximum Alert Level 2 | . . . . . . 2 Low Security (%) 92 | 100 100 . 100 100 100 79 Level 1 7 | . . . . . . 19 Level 2 . | . . . . . . . Level 3 . | . . . . . . . Level 4 . | . . . . . . . Level 5 . | . . . . . . . High Security . | . . . . . . . Max Security . | . . . . . . . Squads Dispatched 9 | . . . . 2 . 7 Investigation 2 | . . . . . . 2 Extermination 4 | . . . . 1 . 3 Reinforcement 3 | . . . . 1 . 2 Assault . | . . . . . . . Garrison . | . . . . . . . Intercept . | . . . . . . . Searches Triggered . | . . . . . . . Construction Impeded 1 | . . . . 1 . . Haulers Reinforced 1 | . . . . . . 1 Active Scanning Responses . | . . . . . . . Cargo Convoy Interrupts . | . . . . . . . Stealth | -11 -10 -10 -9 -7 -7 -7 --------- Run | Yrd Mat Sub Rec Fac Was Fac Distress Signals 5 | . 2 . . 1 . 2 Communications Jammed . | . . . . . . . Distress Signals . | . . . . . . . Times Spotted 99 | . 17 29 4 7 6 36 Peak Tracking Total 9 | . 4 9 1 2 6 5 Tactical Retreats 3 | . . 2 . . . 1 Traps | -11 -10 -10 -9 -7 -7 -7 ------- Run | Yrd Mat Sub Rec Fac Was Fac Traps Triggered 8 | . 3 . . 1 . 4 Indirectly . | . . . . . . . Trap Hack Attempts . | . . . . . . . Triggered . | . . . . . . . Disarmed . | . . . . . . . Reprogrammed . | . . . . . . . Reused . | . . . . . . . Traps Extracted . | . . . . . . . Installed . | . . . . . . . Triggered . | . . . . . . . Machines | -11 -10 -10 -9 -7 -7 -7 ---------- Run | Yrd Mat Sub Rec Fac Was Fac Machines Disabled 9 | . 1 . . 5 . 3 Max in Single Turn 3 | . 1 . . 3 . 2 Machines Repaired . | . . . . . . . Machines Dismantled . | . . . . . . . Machines Sabotaged . | . . . . . . . Overloaded Fab Kills . | . . . . . . . Hacking | -11 -10 -10 -9 -7 -7 -7 --------- Run | Yrd Mat Sub Rec Fac Was Fac Machines Accessed 14 | . 7 1 2 1 . 3 Terminals 4 | . 4 . . . . . Fabricators 3 | . . . . 1 . 2 Repair Stations 1 | . 1 . . . . . Recycling Units 5 | . 2 . 2 . . 1 Scanalyzers . | . . . . . . . Garrison Access . | . . . . . . . Total Hacks 28 | . 15 2 5 2 . 4 Successful 15 | . 9 2 2 1 . 1 Failed 13 | . 6 . 3 1 . 3 Catastrophic 2 | . 2 . . . . . Database Lockouts . | . . . . . . . Manual 13 | . 7 . 2 . . 4 Terminals 9 | . 9 . . . . . Fabricators 4 | . . . . 2 . 2 Repair Stations 1 | . 1 . . . . . Recycling Units 12 | . 5 . 5 . . 2 Scanalyzers . | . . . . . . . Garrison Access . | . . . . . . . Terminal Hacks 5 | . 3 2 . . . . Record 2 | . . 2 . . . . Alert Level 1 | . 1 . . . . . Locate Traps 1 | . 1 . . . . . Zone Layout 1 | . 1 . . . . . Fabricator Hacks 1 | . . . . 1 . . Build 1 | . . . . 1 . . Repair Station Hacks 1 | . 1 . . . . . Refit 1 | . 1 . . . . . Recycling Unit Hacks 1 | . . . 1 . . . Retrieve Components 1 | . . . 1 . . . Scanalyzer . | . . . . . . . Garrison Access Hacks . | . . . . . . . Unauthorized Hacks 7 | . 5 . 1 . . 1 Terminals 1 | . 1 . . . . . Botnet 1 | . 1 . . . . . Fabricators . | . . . . . . . Repair Stations . | . . . . . . . Recycling Units 6 | . 4 . 1 . . 1 Reject 3 | . 2 . . . . 1 Mask 3 | . 2 . 1 . . . Scanalyzers . | . . . . . . . Garrison Access . | . . . . . . . Data Cores Recovered 1 | . 1 . . . . . Used . | . . . . . . . Hacking Detections 12 | . 7 . 2 1 . 2 Full Trace Events . | . . . . . . . Feedback Events . | . . . . . . . Feedback Blocked . | . . . . . . . Robot Schematics Acquired . | . . . . . . . Robots Built . | . . . . . . . Authchips . | . . . . . . . Time . | . . . . . . . Total Robot Build Rating . | . . . . . . . Part Schematics Acquired . | . . . . . . . Parts Built 2 | . . . . 2 . . Authchips . | . . . . . . . Time 117 | . . . . 117 . . Total Part Build Rating 14 | . . . . 14 . . Parts Repaired . | . . . . . . . Time . | . . . . . . . Parts Recycled . | . . . . . . . Recycled Matter . | . . . . . . . Retrieved Matter . | . . . . . . . Retrieved Components . | . . . . . . . Parts Scanalyzed . | . . . . . . . Part Schematics Acquired . | . . . . . . . Parts Damaged . | . . . . . . . Bothacking | -11 -10 -10 -9 -7 -7 -7 ------------ Run | Yrd Mat Sub Rec Fac Was Fac Used RIF Installer . | . . . . . . . Robots Hacked . | . . . . . . . Non-combat . | . . . . . . . Combat . | . . . . . . . Robot Hacks Applied . | . . . . . . . Relay Couplers Released 3 | . . . . 3 . . Programmers 3 | . . . . 3 . . Fabnet Peak Effective % . | . . . . . . . Robots Rewired 5 | . . . 5 . . . Allies Hacked . | . . . . . . . Hacks Repelled . | . . . . . . . Allies | -11 -10 -10 -9 -7 -7 -7 -------- Run | Yrd Mat Sub Rec Fac Was Fac Total Allies 6 | . . . 5 . 1 . Largest Group 5 | . . . 5 5 2 . Highest-Rated Group 90 | . . . 90 90 40 . Highest-Rated Ally 34 | . . . 34 34 31 . Total Orders . | . . . . . . . Ally Attacks 39 | . . . . 14 25 . Total Damage 905 | . . . . 508 397 . Kills 4 | . . . . 3 1 . Allies Corrupted . | . . . . . . . Allies Melted . | . . . . . . . Intel | -11 -10 -10 -9 -7 -7 -7 ------- Run | Yrd Mat Sub Rec Fac Was Fac Robot Analysis Total . | . . . . . . . Derelict Logs Recovered . | . . . . . . . Drone Launches . | . . . . . . . Drone Recoveries . | . . . . . . . Exploration | -11 -10 -10 -9 -7 -7 -7 ------------- Run | Yrd Mat Sub Rec Fac Was Fac Turns Passed 5724 | 164 1380 1025 671 598 179 1707 Spaces Moved 3733 | 106 773 758 426 286 105 1279 Core 53 | 6 4 9 . . 3 31 Treads 211 | . . . . . . 211 Legs 588 | 100 139 5 . 31 50 263 Wheels 2046 | . 621 744 426 255 . . Hover 738 | . 9 . . . 52 677 Flight 97 | . . . . . . 97 Fastest Speed 50 | 50 80 95 101 101 100 50 Average Speed 109 | 116 104 114 110 139 142 98 Slowest Speed 550 | 120 400 400 120 174 400 550 Overloaded Moves . | . . . . . . . Propulsion Burnouts . | . . . . . . . Robots Hopped . | . . . . . . . Cave-ins Triggered . | . . . . . . . Exploration Rate (%) 43 | 5 85 43 58 8 83 23 Regions Visited 6 Branch Regions 2 Pre-discovered Areas . | . . . . . . . Known Exits Taken 1 | . . 1 . . . . Unknown Exits Taken 3 | 1 1 . 1 . . . Scrap Searched 4 | . . 4 . . . . Spaces Dug 10 | . . 1 . . . 9 Terrain Destroyed 149 | . 7 43 3 53 16 27 Melee 6 | . . . . . . 6 Projectile 49 | . . 16 3 17 2 11 AOE 94 | . 7 27 . 36 14 10 Terrain Rammed . | . . . . . . . Walls Destroyed . | . . . . . . . Machines Disabled . | . . . . . . . Actions | -11 -10 -10 -9 -7 -7 -7 --------- Run | Yrd Mat Sub Rec Fac Was Fac Total 4941 | 129 1275 849 578 452 116 1542 Wait 749 | . 412 18 82 129 . 108 Move 3728 | 105 772 757 425 286 104 1279 Hop . | . . . . . . . Pick Up 50 | 8 16 6 4 9 . 7 Fast Attach 32 | 5 6 8 3 4 . 6 Attach 14 | 2 2 3 1 2 . 4 Detach . | . . . . . . . Swap 20 | 1 9 8 . . 1 1 Drop 53 | . 21 13 9 4 2 4 Fire 166 | 8 37 36 2 18 8 57 Melee 100 | . . . 24 . 1 75 Ram 5 | . . . 4 . . 1 Kick . | . . . . . . . Crush . | . . . . . . . Escape Stasis . | . . . . . . . Rewire 24 | . . . 24 . . . Trap . | . . . . . . . Miscellaneous . | . . . . . . . Route ------- -11/Scrapyard -10/Materials (discovered 5 exits: [*Mat x2] / [*Min x2] / *Sub) -10/Subcaves (discovered 2 exits: [*Mat] / *Rec) -9/Recycling -7/Factory (discovered 2 exits: [*Fac] / [*Low]) -7/Waste -7/Factory History --------- Turn | Location | Event 7 | -11/Scrapyard | Discovered new exit (range 15) 165 | -11/Scrapyard | Entered Materials 303 | -10/Materials | Build established: Mutant 618 | -10/Materials | Discovered new exit (range 7) 685 | -10/Materials | Discovered new exit (range 15) 1008 | -10/Materials | Discovered new exit (range 7) 1140 | -10/Materials | Lost 4 parts (1p1n2w) 1142 | -10/Materials | Discovered new exit (range 8) 1442 | -10/Materials | Discovered new exit (range 15) 1545 | -10/Materials | Entered Subcaves 1611 | -10/Subcaves | Discovered new exit (range 16) 1640 | -10/Subcaves | Identified exit to Recycling 1737 | -10/Subcaves | Ambushed by swarm of Subdwellers 1737 | -10/Subcaves | Ambushed by Subdwellers from Twisted Machinery 1740 | -10/Subcaves | Ambushed by Subdwellers from Twisted Machinery 1740 | -10/Subcaves | Ambushed by Subdwellers from Twisted Machinery 1740 | -10/Subcaves | Ambushed by Subdwellers from Twisted Machinery 1778 | -10/Subcaves | Lost 3 allies 1782 | -10/Subcaves | Destroyed 7 combat bots 1964 | -10/Subcaves | Disturbed a concealed Subdweller 2104 | -10/Subcaves | Build established: Scavenger-Mutant 2210 | -10/Subcaves | Core integrity fell below 50% 2362 | -10/Subcaves | Visited Clippyterm 2425 | -10/Subcaves | Ambushed by Subdwellers from Twisted Machinery 2495 | -10/Subcaves | Discovered new exit (range 7) 2570 | -10/Subcaves | Entered Recycling 2573 | -9/Recycling | Found Scrap Engine 2981 | -9/Recycling | Build established: Construct 3160 | -9/Recycling | Discovered new exit (range 15) 3241 | -9/Recycling | Entered Factory 3241 | -7/Factory | Accompanied by 5 allies 3241 | -7/Factory | Evolved 6 slots: Propulsion x2, Utility x2, Weapon x2 3381 | -7/Factory | Fabricated Hvy. Gauss Cannon (x2) 3445 | -7/Factory | Discovered new exit (range 10) 3502 | -7/Factory | Build established: Commander-Construct 3565 | -7/Factory | Discovered new exit (range 16) 3673 | -7/Factory | Lost 3 allies 3839 | -7/Factory | Sucked down chute 3839 | -7/Factory | Entered Waste 3840 | -7/Waste | Met a frightened Derelict 3854 | -7/Waste | EMP discharged 3864 | -7/Waste | Spotted C-40 Crusher 3869 | -7/Waste | Spotted C-40 Crusher 3871 | -7/Waste | Spotted C-40 Crusher 3872 | -7/Waste | Spotted C-40 Crusher 3875 | -7/Waste | Destroyed C-40 Crusher 3879 | -7/Waste | Spotted C-40 Crusher 3879 | -7/Waste | Spotted C-40 Crusher 3887 | -7/Waste | Allies destroyed C-40 Crusher 3892 | -7/Waste | Destroyed C-40 Crusher 3892 | -7/Waste | Destroyed C-40 Crusher 3915 | -7/Waste | 2 allies followed down the chute 3936 | -7/Waste | Crushed by Compactor (0 parts destroyed, 1 dropped) 3947 | -7/Waste | Crushed by Compactor (1 part destroyed) 3954 | -7/Waste | EMP discharged 3954 | -7/Waste | System corruption reached 10% 3957 | -7/Waste | Lost 3 allies 3978 | -7/Waste | Lost 3 parts (2n1u) 4006 | -7/Waste | Discovered new exit (range 13) 4018 | -7/Waste | Entered Factory 4274 | -7/Factory | Build established: Construct 4874 | -7/Factory | Core integrity fell below 50% 4913 | -7/Factory | Lost 8 parts (2p3n1u2w) 5188 | -7/Factory | Core integrity fell below 20% 5725 | -7/Factory | Destroyed by Y-54 Guardian with Flak Gun Last Messages --------------- 05671_ Arm. Scrap Engine consumes Hvy. Ion Cannon. 05681_ K-01 Serf collects debris. 05681_ Triggered Alarm Trap. 05681_ An alarm sounds. 05681_ ALERT: Alarm triggered, dispatching investigation squad. 05682_ K-01 Serf collects debris. 05685_ Destroyed Imp. Hover Unit. 05686_ K-01 Serf collects debris. 05688_ U-05 Engineer lays Concrete. 05688_ K-01 Serf collects debris. 05691_ Destroyed Lgt. Deuterium Engine. 05691_ Chainsword follow-up attack on W-25 Informer. 05691_ W-25 Informer destroyed. 05692_ System corrupted: Axe rejected. 05692_ K-01 Serf collects debris. 05694_ Acquired Axe. 05695_ K-01 Serf collects debris. 05702_ Arm. Scrap Engine constructs Thermic Pulse Construct/G. 05711_ System corrupted: Matter fused (-10). 05722_ Arm. Scrap Engine consumes Flak Gun. Map ----- +----------------------------------------------------+ | ?????????????????????????????????????????????????? | | ?????????????????????????????????????????????????? | | ?????????????????????????????????????????????##### | | ?????????????????????????????????????????????# | | ?????????????????????????????????????????????# | | ?????????????????????????????????????????????# | | ?????????????????????????????????????????????#! | | ?????????????????????????????????????????????# | | ?????????????????????????????????????????????# | | ?????????????????????????????????????????????# """ | | ?????????????????????????????????????????????# """ | | ?????????????????????????????????????????????# """ | | ?????????????????????????????????????????????# """ | | ?????????????????????????????????????????????# | | ?????????????????????????????????????????????# """ | | ?????????????????????????????????????????????# """ | | ?????????????????????????????????????????????# """ | | ?????????????????????????????????????????????# """ | | ?????????????????????????????????????????????# | | ??????????????????????????????????????????######## | | ??????????????????????????????????????????# | | ??????????????????????????????????????????# | | ??????????????????????????#######?????????# | | ??????????????????????????# ##+###????# | | ?????????????????###### ### T #????# | | ?????????? Y @ "" #????# ## | | ?????????????????######+### k kg g #???## ## | | ??????????????????????????# ##k #???# % # | | ??????????????????????????###+#### ##### # | | ???????????????????????????? ??# % # | | ???????????????????????????? ??# % + | | ??????????????????????????? ?# # | | ??????????????????????????? ?## ###### # | | ??????????????????????????# #?# #????# % # | | ??????????????????????????# #?# +????## ###### | | ??????????????????????????# #?###?????# #????# | | ??????????????????????????#######?????????# #????? | | ??????????????????????????????????????????# #????? | | ??????????????????????????????????????????# #????? | | ??????????????????????????????????????????# #????? | | ??????????????????????????????????????????# #????? | | ??????????????????????????????????????????# #????? | | ??????????????????????????????????????????? ?????? | | ??????????????????????????????????????????? ?????? | | ??????????????????????????????????????????? ?????? | | ??????????????????????????????????????????? ?????? | | ??????????????????????????????????????????? ?????? | | ??????????????????????????????????????????? ?????? | | ??????????????????????????????????????????? ?????? | | ?????????????????????????????????????????????????? | +----------------------------------------------------+ Best States ------------- Heat Dissipation 39 Energy Generation 17 Energy Capacity 310 Matter Stores 300 Matter Capacity 300 Sight Range 21 Robot Scan Range 14 Terrain Scan Range 16 Terrain Scan Density 10 Additional Mass Support 9 Armor Coverage 150 Evasion (%) 67 Targeting Accuracy 5 Melee Accuracy 6 Recoil Reduction 3 Item Schematics ----------------- None Robot Schematics ------------------ None Fabricated ------------ Hvy. Gauss Cannon | x2 | -7/Factory | Preloaded Alien Tech Used ----------------- None Achievements -------------- Universal Adapter Challenges ------------ None Game ------ Seed OmegaTachyonCalibrator Manual? 0 Play Time 00:49:19 Cumulative 34.5 hours Start 2024.04.09 @ 18:39:26 End 2024.04.09 @ 19:24:16 Sessions 3 Manual Loads 0 Difficulty Rogue Special Mode None Game No. 75 Rogue 75 Adventurer 0 Explorer 0 Win Type - Total 1 Types 1/0/0/0/0/0/0/0/0 Lore% 22 Gallery% 35 Achievement% 33 Wizard Run 0 Options --------- Layout 0 ASCII 0 Keyboard 0 Movement Numpad Keybinds 0 Fullscreen 1 Font 18/SmallcapsGlow Map View 76x50 Zoom Use 0% Tactical HUD 1 Map Filters NONE Filters NONE Steam 1 RUN: deea1d32-08fa-4859-b462-6a1d17801b3a